Cogmind - Beta 13 @@@ ROGUE MODE // 2024.04.19 @ 15:23:03 Player: skittytittles Result: Destroyed by G-34 Mercenary with Small Laser Performance ------------- Evolutions (1) 500 Regions Visited (3) 600 Robots Destroyed (38) 190 Value Destroyed (875) 875 Prototype IDs (2) 40 Alien Tech Used (0) 0 Bonus (30) 30 TOTAL SCORE: 2235 Bonus ------- High Alert Combat Kills 30 Cogmind --------- Core Integrity 0/400 Matter 10/300 Energy 100/100 System Corruption 0% Temperature Cool (6) Movement Core (350) Ox6 Location -9/Mines Parts ------- > --- POWER (1) -------- (None) > --- PROPULSION (4) --- (None) > --- UTILITY (2) ------ Large Storage Unit Signal Interpreter > --- WEAPON (2) ------- (None) > --- INVENTORY (15) --- Aluminum Leg Machine Analyzer Visual Processing Unit Improved Sensor Array Terrain Scan Processor Hardlight Generator Advanced Beam Rifle Missile Launcher Peak State ------------ > --- POWER ------------ Improved Ion Engine > --- PROPULSION ------- Aluminum Leg Aluminum Leg Aluminum Leg Aluminum Leg > --- UTILITY ---------- Small Storage Unit Signal Interpreter > --- WEAPON ----------- Missile Launcher Missile Launcher > --- INVENTORY -------- Machine Analyzer Visual Processing Unit Improved Sensor Array Terrain Scan Processor Hardlight Generator Advanced Beam Rifle Grenade Launcher Missile Launcher [Rating: 16] Favorites ----------- Power Light Ion Engine Engine Light Ion Engine Propulsion Aluminum Leg Leg Aluminum Leg Wheel Armored Wheel Utility Signal Interpreter Storage Large Storage Unit Processor Signal Interpreter Weapon Missile Launcher Ballistic Gun Light Assault Rifle Launcher Missile Launcher Build | -11 -10 -9 -9 ------- Run | Yrd Mat Mat Min Slots Evolved 2 | . . 2 . Power . | . . . . Propulsion 2 | . . 2 . Utility . | . . . . Weapon . | . . . . Parts Attached 29 | 6 7 16 . Power 5 | 1 1 3 . Engine 5 | 1 1 3 . Core . | . . . . Reactor . | . . . . Propulsion 10 | 2 1 7 . Treads . | . . . . Leg 8 | 2 1 5 . Wheel 2 | . . 2 . Hover . | . . . . Flight . | . . . . Utility 3 | 1 1 1 . Device . | . . . . Storage 2 | 1 . 1 . Processor 1 | . 1 . . Hackware . | . . . . Protection . | . . . . Artifact . | . . . . Weapon 11 | 2 4 5 . Energy Gun . | . . . . Energy Cannon . | . . . . Ballistic Gun 5 | 2 2 1 . Ballistic Cannon . | . . . . Launcher 6 | . 2 4 . Special Weapon . | . . . . Impact Weapon . | . . . . Slashing Weapon . | . . . . Piercing Weapon . | . . . . Special Melee Weapon . | . . . . Unidentified Prototypes . | . . . . Parts Lost 13 | . 1 9 3 Power 2 | . . 1 1 Propulsion 7 | . . 6 1 Utility . | . . . . Weapon 4 | . 1 2 1 Highest Loss Streak 6 | . 1 6 2 To Critical Strikes . | . . . . Average Slot Usage (%) 80 | . 94 82 44 Engine 10 | . 14 10 8 Leg 19 | . 28 19 . Wheel 6 | . . 9 6 Storage 11 | . 14 11 11 Processor 11 | . 12 11 11 Ballistic Gun 3 | . 11 1 . Launcher 16 | . 12 19 8 Naked Turns . | . . . . Heaviest Build 39 | 11 13 39 28 Greatest Support 40 | 20 20 40 12 Greatest Overweight (x) 9 | . . 8 9 Average Overweight (x) . | . . . 2 Largest Inventory Capacity 15 | 8 8 15 15 Average Capacity 11 | 7 8 12 15 Most Carried 10 | 3 8 10 8 Average Carried 7 | 1 6 8 8 Final Capacity 15 | 8 8 15 15 Final Carried 8 | 2 8 8 8 Class Distribution -------------------- 95% | Mutant 4% | Scavenger-Mutant Dominant Class ---------------- Mutant | -10/Materials Mutant | -9/Materials Mutant | -9/Mines Resources | -11 -10 -9 -9 ----------- Run | Yrd Mat Mat Min Matter Collected 735 | 243 199 288 5 Remotely . | . . . . Salvage Created 648 | . 221 367 60 Parts 57 | . 24 28 5 Haulers Intercepted 1 | . . 1 . Recyclers Shooed . | . . . . Parts Field Recycled . | . . . . Retrieved Matter . | . . . . Parts Self-Destructed . | . . . . Prevented . | . . . . Kills | -11 -10 -9 -9 ------- Run | Yrd Mat Mat Min Combat Hostiles Destroyed 25 | . 8 12 5 Guns 2 | . 2 . . AOE 23 | . 6 12 5 Classes Destroyed 10 | . 6 4 . Worker 1 | . . 1 . Builder 4 | . 2 2 . Hauler 1 | . . 1 . Recycler 2 | . 1 1 . Operator 1 | . 1 . . Watcher 4 | . 2 2 . Swarmer 11 | . 6 1 4 Grunt 8 | . 2 6 . Brawler 2 | . . 1 1 Sentry 4 | . . 4 . Best Kill Streak 6 | . 5 6 4 Combat Bots Only 5 | . 3 5 4 Max Kills in Single Turn 3 | . 3 3 3 Gunslinging . | . . . . Exploded 3 | . 2 3 3 Melee . | . . . . Uniques/NPCs Destroyed . | . . . . Combat | -11 -10 -9 -9 -------- Run | Yrd Mat Mat Min Hostile Shots Fired 196 | . 57 98 41 Missed 54 | . 13 27 14 Damage Taken 1879 | . 484 1079 316 Core 501 | . 99 187 215 Absorbed by Shields . | . . . . Regen/Repaired (Parts) 56 | . 56 . . Core Remaining (%) 80 | 100 60 . . Volleys Fired 47 | . 28 16 3 Largest 2 | . 2 2 1 Hottest 72 | . 50 72 30 Shots Fired 76 | . 44 29 3 Gun 29 | . 24 5 . Cannon . | . . . . Launcher 47 | . 20 24 3 Special . | . . . . Kinetic 29 | . 24 5 . Thermal . | . . . . Explosive 47 | . 20 24 3 Electromagnetic . | . . . . Robot Hit Streak 8 | . 8 5 4 Robot Miss Streak 5 | . 5 4 . Penetration Max . | . . . . Secondary Targets . | . . . . Shots Hit Robots 32 | . 17 12 3 Core Hits 47 | . 21 21 5 Critical Kills . | . . . . Critical Parts Destroyed . | . . . . Critical Strikes . | . . . . Melee Attacks . | . . . . Impact . | . . . . Slashing . | . . . . Piercing . | . . . . Sneak Attacks . | . . . . Combat Hostiles . | . . . . Follow-up Attacks . | . . . . Damage Inflicted 2645 | . 842 1496 307 Guns 148 | . 141 7 . Cannons . | . . . . Explosions 2497 | . 701 1489 307 Melee . | . . . . Ramming . | . . . . Kinetic 148 | . 141 7 . Thermal 205 | . . 205 . Explosive 2292 | . 701 1284 307 Electromagnetic . | . . . . Impact . | . . . . Slashing . | . . . . Piercing . | . . . . Highest Corruption . | . . . . Average Corruption . | . . . . Corruption Purged . | . . . . Corruption Blocked . | . . . . Overload Shots . | . . . . Overflow Damage 160 | . 9 141 10 Projectiles . | . . . . Explosions 160 | . 9 141 10 Melee . | . . . . Knockbacks . | . . . . Impact . | . . . . Kinetic . | . . . . Secondary . | . . . . Self-Inflicted Damage 368 | . 99 238 31 Shots 11 | . 5 5 1 Rammed . | . . . . Targets Rammed . | . . . . Kicked . | . . . . Crushed . | . . . . Highest Temperature 20 | . 20 17 . Average Temperature 5 | . 7 4 . Received Heat Transfer 522 | . 54 330 138 Siege Activations . | . . . . Robots Corrupted . | . . . . Combat Hostiles . | . . . . Parts Fried . | . . . . Impact Corruptions . | . . . . Robots Melted . | . . . . Combat Hostiles . | . . . . Parts Melted . | . . . . Heat Transferred 100 | . . 100 . Parts Sabotaged . | . . . . Parts Stolen . | . . . . Parts Stripped . | . . . . Power Chain Reactions . | . . . . Alert | -11 -10 -9 -9 ------- Run | Yrd Mat Mat Min Peak Influence 485 | . 256 485 243 Initial 96 | . . 1 96 Average 205 | . 110 268 147 Maximum Alert Level 2 | . 1 2 1 Low Security (%) 48 | 100 84 28 58 Level 1 44 | . 15 59 41 Level 2 7 | . . 11 . Level 3 . | . . . . Level 4 . | . . . . Level 5 . | . . . . High Security . | . . . . Max Security . | . . . . Squads Dispatched 2 | . . 2 . Investigation 2 | . . 2 . Extermination . | . . . . Reinforcement . | . . . . Assault . | . . . . Garrison . | . . . . Intercept . | . . . . Searches Triggered . | . . . . Construction Impeded . | . . . . Haulers Reinforced . | . . . . Active Scanning Responses . | . . . . Cargo Convoy Interrupts . | . . . . Stealth | -11 -10 -9 -9 --------- Run | Yrd Mat Mat Min Distress Signals 1 | . . 1 . Communications Jammed . | . . . . Distress Signals . | . . . . Times Spotted 37 | . 11 20 6 Peak Tracking Total 5 | . 3 5 3 Tactical Retreats . | . . . . Traps | -11 -10 -9 -9 ------- Run | Yrd Mat Mat Min Traps Triggered 1 | . . 1 . Indirectly . | . . . . Trap Hack Attempts . | . . . . Triggered . | . . . . Disarmed 4 | . 4 . . Reprogrammed . | . . . . Reused . | . . . . Traps Extracted . | . . . . Installed . | . . . . Triggered 1 | . . . 1 Machines | -11 -10 -9 -9 ---------- Run | Yrd Mat Mat Min Machines Disabled 10 | . 2 8 . Max in Single Turn 2 | . 1 2 . Machines Repaired . | . . . . Machines Dismantled . | . . . . Machines Sabotaged . | . . . . Overloaded Fab Kills . | . . . . Hacking | -11 -10 -9 -9 --------- Run | Yrd Mat Mat Min Machines Accessed 8 | . 3 5 . Terminals 5 | . 2 3 . Fabricators . | . . . . Repair Stations 1 | . 1 . . Recycling Units 1 | . . 1 . Scanalyzers 1 | . . 1 . Garrison Access . | . . . . Total Hacks 27 | . 16 11 . Successful 15 | . 11 4 . Failed 12 | . 5 7 . Catastrophic . | . . . . Database Lockouts . | . . . . Manual . | . . . . Terminals 21 | . 12 9 . Fabricators . | . . . . Repair Stations 4 | . 4 . . Recycling Units 1 | . . 1 . Scanalyzers 1 | . . 1 . Garrison Access . | . . . . Terminal Hacks 11 | . 8 3 . Record 1 | . 1 . . Prototype ID Bank 1 | . . 1 . Alert Level 3 | . 2 1 . Unreport Threat 1 | . 1 . . Locate Traps 1 | . 1 . . Disarm Traps 1 | . 1 . . Maintenance Status 1 | . 1 . . Zone Layout 2 | . 1 1 . Fabricator Hacks . | . . . . Repair Station Hacks 3 | . 3 . . Scan Component 2 | . 2 . . Repair 1 | . 1 . . Recycling Unit Hacks 1 | . . 1 . Retrieve Matter 1 | . . 1 . Scanalyzer . | . . . . Garrison Access Hacks . | . . . . Unauthorized Hacks . | . . . . Terminals . | . . . . Fabricators . | . . . . Repair Stations . | . . . . Recycling Units . | . . . . Scanalyzers . | . . . . Garrison Access . | . . . . Data Cores Recovered 1 | . 1 . . Used . | . . . . Hacking Detections 7 | . 3 4 . Full Trace Events 1 | . . 1 . Feedback Events . | . . . . Feedback Blocked . | . . . . Robot Schematics Acquired . | . . . . Robots Built . | . . . . Authchips . | . . . . Time . | . . . . Total Robot Build Rating . | . . . . Part Schematics Acquired . | . . . . Parts Built . | . . . . Authchips . | . . . . Time . | . . . . Total Part Build Rating . | . . . . Parts Repaired 1 | . 1 . . Time 26 | . 26 . . Parts Recycled . | . . . . Recycled Matter . | . . . . Retrieved Matter . | . . . . Retrieved Components . | . . . . Parts Scanalyzed . | . . . . Part Schematics Acquired . | . . . . Parts Damaged . | . . . . Bothacking | -11 -10 -9 -9 ------------ Run | Yrd Mat Mat Min Used RIF Installer . | . . . . Robots Hacked . | . . . . Non-combat . | . . . . Combat . | . . . . Robot Hacks Applied . | . . . . Relay Couplers Released . | . . . . Fabnet Peak Effective % . | . . . . Robots Rewired . | . . . . Allies Hacked . | . . . . Hacks Repelled . | . . . . Allies | -11 -10 -9 -9 -------- Run | Yrd Mat Mat Min Total Allies . | . . . . Largest Group . | . . . . Highest-Rated Group . | . . . . Highest-Rated Ally . | . . . . Total Orders . | . . . . Ally Attacks . | . . . . Total Damage . | . . . . Kills . | . . . . Allies Corrupted . | . . . . Allies Melted . | . . . . Intel | -11 -10 -9 -9 ------- Run | Yrd Mat Mat Min Robot Analysis Total . | . . . . Derelict Logs Recovered 1 | . . . 1 Drone Launches . | . . . . Drone Recoveries . | . . . . Exploration | -11 -10 -9 -9 ------------- Run | Yrd Mat Mat Min Turns Passed 2116 | 79 496 1274 267 Spaces Moved 1147 | 55 331 613 148 Core 35 | 1 . 7 27 Treads . | . . . . Legs 846 | 54 331 461 . Wheels 266 | . . 145 121 Hover . | . . . . Flight . | . . . . Fastest Speed 50 | 50 120 100 120 Average Speed 127 | 118 120 122 169 Slowest Speed 500 | 120 120 450 500 Overloaded Moves . | . . . . Propulsion Burnouts . | . . . . Robots Hopped . | . . . . Cave-ins Triggered . | . . . . Exploration Rate (%) 38 | 4 53 59 38 Regions Visited 3 Branch Regions 1 Pre-discovered Areas 2 | . . . 2 Known Exits Taken 2 | . 1 1 . Unknown Exits Taken 1 | 1 . . . Scrap Searched . | . . . . Spaces Dug . | . . . . Terrain Destroyed 342 | . 88 223 31 Melee . | . . . . Projectile . | . . . . AOE 342 | . 88 223 31 Terrain Rammed . | . . . . Walls Destroyed . | . . . . Machines Disabled . | . . . . Actions | -11 -10 -9 -9 --------- Run | Yrd Mat Mat Min Total 1720 | 68 384 1108 160 Wait 463 | . 10 444 9 Move 1144 | 54 330 612 148 Hop . | . . . . Pick Up 26 | 8 9 9 . Fast Attach 3 | . . 3 . Attach 15 | 6 3 6 . Detach . | . . . . Swap 11 | . 4 7 . Drop 11 | . . 11 . Fire 47 | . 28 16 3 Melee . | . . . . Ram . | . . . . Kick . | . . . . Crush . | . . . . Escape Stasis . | . . . . Rewire . | . . . . Trap . | . . . . Miscellaneous . | . . . . Route ------- -11/Scrapyard -10/Materials (discovered 2 exits: *Mat / [*Min]) -9/Materials (discovered 2 exits: [*Mat] / *Min) -9/Mines History --------- Turn | Location | Event 42 | -11/Scrapyard | Discovered new exit (range 15) 80 | -11/Scrapyard | Entered Materials 308 | -10/Materials | Build established: Mutant 347 | -10/Materials | Discovered new exit (range 10) 372 | -10/Materials | Identified exit to Materials 498 | -10/Materials | Repaired Grenade Launcher 527 | -10/Materials | Discovered new exit (range 13) 576 | -10/Materials | Entered another Materials area 576 | -9/Materials | Evolved 2 slots: Propulsion x2 971 | -9/Materials | Discovered new exit (range 9) 1268 | -9/Materials | Lost 6 parts (1p4n1w) 1841 | -9/Materials | Discovered new exit (range 9) 1849 | -9/Materials | Identified exit to Mines 1850 | -9/Materials | Entered Mines 1851 | -9/Mines | Learned location of Storage (-7) 1867 | -9/Mines | Met a Derelict bent on vengeance 2045 | -9/Mines | Core integrity fell below 50% 2086 | -9/Mines | Core integrity fell below 20% 2117 | -9/Mines | Destroyed by G-34 Mercenary with Small Laser Last Messages --------------- 02029_ The unstable cave ceiling collapses. 02029_ R-06 Scavenger collects Lgt. Assault Rifle. 02034_ B-36 Bruiser destroyed. 02034_ U-05 Engineer builds a Wall. 02034_ R-06 Scavenger collects Lgt. Assault Rifle. 02039_ U-05 Engineer lays Concrete. 02040_ U-05 Engineer builds a Wall. 02042_ The unstable cave ceiling collapses. 02042_ Grenade Launcher destroyed. 02044_ U-05 Engineer lays Concrete. 02045_ The unstable cave ceiling collapses. 02045_ U-05 Engineer lays Concrete. 02046_ Ion Engine destroyed. 02047_ U-05 Engineer builds a Wall. 02055_ U-05 Engineer lays Concrete. 02058_ U-05 Engineer builds a Wall. 02062_ U-05 Engineer lays Concrete. 02063_ U-05 Engineer builds a Wall. 02064_ R-06 Scavenger collects Rnf. Ion Engine. 02067_ U-05 Engineer builds a Wall. Map ----- +----------------------------------------------------+ | ??????## #???????????# ## #????????????????????? | | ??????# ###?????????# ## ##???????????????????? | | ??????# ##????????# #???????????????????? | | ??????## #????????##### #???????????????????? | | ???????## #????????????# #???????????????????? | | ????????## #?#####??????# #???????????????????? | | ?????????## ### #?????## #???????????????????? | | ?????????## #?????## ####????????????????? | | ???????### ##?????# ## #????????????????? | | ?????### ##????# ##???????????????? | | ?????# #????### #???????????????? | | ????# ### #????# # # #??##???????????? | | ???# #??## #????# ##?# ???????????? | | ??# #????## # ##??### ##?# #???????????? | | ?# #??????# ## #??## ### #???????????? | | ?# #???????# ### #??# # #???????????? | | ?? ????????# #?## ##??# # #???????????? | | ??#??????????# #???###???## % # ######??????? | | ???????####### #??????????## #??????? | | ?????# #???????????## #### #??????? | | ???????####### #????????????####### #???????????? | | ?????????????# #????????????????## #### #####??? | | ?????????????# #???????????????## | | ?????????????# #???????????????# ######?????? | | ?????????????# #????############ #??????????? | | ?????????????# #????# @ g ##??????????? | | ????????????## #????# ????? | | ????????????# #????# ######### ?? | | ????????????# ###????#?????????# ##### ##??? | | ???????????## #????????????????## ##??????#???? | | ??????????## ##????????????????### ##???????????? | | ?????????## ##?????????????????# #????????????? | | ?????????# ###???????????????# #????????????? | | ?????????# #???????????????# #????????????? | | ?????????## #???????????????? #????????????? | | ??????????## ## ##???????????????? #????????????? | | ???????????# ####????????????????? ?????????????? | | ???????????# #???????????????????? ?????????????? | | ???????????# #??????????????????????????????????? | | ?????####### #??????????????????????????????????? | | #??????????????????????????????????? | | ?????####### #??????????????????????????????????? | | ???????????# #####??????????????????????????????? | | ???????????# #??????????????????????????????? | | ???????????# ### #??????????????????????????????? | | ???????????# #?# #??????????????????????????????? | | ??????###### #?# #??????????????????????????????? | | ?????## ## #?# #??????????????????????????????? | | ?????# # #?# #??????????????????????????????? | | ?????# #?# #??????????????????????????????? | +----------------------------------------------------+ Best States ------------- Heat Dissipation 28 Energy Generation 12 Energy Capacity 265 Matter Stores 287 Matter Capacity 300 Sight Range 16 Terrain Scan Density 10 Evasion (%) 55 Item Schematics ----------------- None Robot Schematics ------------------ None Fabricated ------------ Nothing Alien Tech Used ----------------- None Achievements -------------- None Challenges ------------ None Game ------ Seed MinesnifferSeismicCarapace Manual? 0 Play Time 00:26:52 Cumulative 6.0 hours Start 2024.04.19 @ 14:43:10 End 2024.04.19 @ 15:23:03 Sessions 1 Manual Loads 0 Difficulty Rogue Special Mode None Game No. 6 Rogue 6 Adventurer 0 Explorer 0 Win Type - Total 0 Types 0/0/0/0/0/0/0/0/0 Lore% 11 Gallery% 11 Achievement% 12 Wizard Run 0 Options --------- Layout 0 ASCII 0 Keyboard 0 Movement Mouse Keybinds 0 Fullscreen 1 Font 18/SmallcapsGlow Map View 38x25 Zoom Use 99% Tactical HUD 1 Map Filters NONE Filters NONE Steam 1 RUN: abbd7378-0cd6-4645-82f5-f28462877561